[Event "*** Titled Tuesday Blitz"]
[Site "Chess.com"]
[Date "2020.05.26"]
[Round "3"]
[White "DivyaDeshmukh23"]
[Black "Bulldog167"]
[Result "0-1"]
[WhiteElo "2434"]
[BlackElo "2770"]
[TimeControl "180+1"]
[EndTime "10:26:33 PDT"]
[Termination "Bulldog167 won by resignation"]

1. e4 {[%clk 0:03:00.9]} 1... c5 {[%clk 0:03:00.1]} 2. Nf3 {[%clk 0:02:51]} 2...
d6 {[%clk 0:03:00.3]} 3. d4 {[%clk 0:02:50]} 3... cxd4 {[%clk 0:03:01.2]} 4.
Nxd4 {[%clk 0:02:45.8]} 4... Nf6 {[%clk 0:03:01.2]} 5. Nc3 {[%clk 0:02:42.7]}
5... a6 {[%clk 0:03:01.3]} 6. Bg5 {[%clk 0:02:41]} 6... Nbd7 {[%clk 0:03:01.3]}
7. f4 {[%clk 0:02:36.7]} 7... Qc7 {[%clk 0:03:01.4]} 8. Qf3 {[%clk 0:02:30]}
8... b5 {[%clk 0:03:01.5]} 9. O-O-O {[%clk 0:02:26.6]} 9... Bb7 {[%clk
0:03:01.1]} 10. Bd3 {[%clk 0:02:21.4]} 10... g6 {[%clk 0:03:01.2]} 11. Rhe1
{[%clk 0:02:08.6]} 11... Bg7 {[%clk 0:02:59.6]} 12. Nd5 {[%clk 0:01:41.4]} 12...
Nxd5 {[%clk 0:02:58.6]} 13. exd5 {[%clk 0:01:41.8]} 13... Nf6 {[%clk 0:02:59.2]}
14. Nc6 {[%clk 0:01:37.5]} 14... Bxc6 {[%clk 0:02:59.5]} 15. dxc6 {[%clk
0:01:38.4]} 15... d5 {[%clk 0:03:00.4]} 16. Bxf6 {[%clk 0:01:25.1]} 16... Bxf6
{[%clk 0:03:01.3]} 17. Qxd5 {[%clk 0:01:25.5]} 17... Qxf4+ {[%clk 0:03:01.1]}
18. Kb1 {[%clk 0:01:25.7]} 18... O-O {[%clk 0:03:01.7]} 19. Be4 {[%clk
0:01:19.2]} 19... Rac8 {[%clk 0:02:49.3]} 20. g3 {[%clk 0:01:00.9]} 20... Qf2
{[%clk 0:02:48.8]} 21. Bg2 {[%clk 0:00:54.9]} 21... Kg7 {[%clk 0:02:25]} 22. Qe4
{[%clk 0:00:50.1]} 22... Qc5 {[%clk 0:02:17.6]} 23. h4 {[%clk 0:00:44.5]} 23...
Rfd8 {[%clk 0:02:13.3]} 24. Bf3 {[%clk 0:00:37.2]} 24... a5 {[%clk 0:01:54.9]}
25. h5 {[%clk 0:00:32.2]} 25... b4 {[%clk 0:01:53.8]} 26. hxg6 {[%clk
0:00:30.6]} 26... hxg6 {[%clk 0:01:53.5]} 27. Qf4 {[%clk 0:00:22.5]} 27... a4
{[%clk 0:01:44.2]} 28. Rxd8 {[%clk 0:00:16]} 28... Rxd8 {[%clk 0:01:44.3]} 29.
c7 {[%clk 0:00:16.4]} 29... Rc8 {[%clk 0:01:42.7]} 30. Rh1 {[%clk 0:00:16.5]}
30... Qxc7 {[%clk 0:01:30.3]} 31. Qh6+ {[%clk 0:00:08.6]} 31... Kg8 {[%clk
0:01:30.4]} 32. Be4 {[%clk 0:00:07.9]} 32... Qe5 {[%clk 0:01:24.7]} 33. c3
{[%clk 0:00:04.9]} 33... Qxe4+ {[%clk 0:01:24.5]} 0-1

[Event "*** Titled Tuesday Blitz"]
[Site "Chess.com"]
[Date "2020.05.26"]
[Round "3"]
[White "Chessdemon2019"]
[Black "Olkaa"]
[Result "1-0"]
[WhiteElo "2307"]
[BlackElo "2606"]
[TimeControl "180+1"]
[EndTime "10:26:34 PDT"]
[Termination "Chessdemon2019 won on time"]

1. e4 {[%clk 0:03:00.9]} 1... c5 {[%clk 0:02:59.5]} 2. Nf3 {[%clk 0:02:59.9]}
2... Nc6 {[%clk 0:03:00]} 3. Bb5 {[%clk 0:02:59.6]} 3... g6 {[%clk 0:02:59.8]}
4. Bxc6 {[%clk 0:02:59.7]} 4... dxc6 {[%clk 0:03:00.7]} 5. d3 {[%clk 0:03:00]}
5... Bg7 {[%clk 0:03:01]} 6. Nc3 {[%clk 0:03:00.2]} 6... Nf6 {[%clk 0:03:00.4]}
7. Be3 {[%clk 0:03:00.3]} 7... b6 {[%clk 0:02:59.5]} 8. Qd2 {[%clk 0:02:59.1]}
8... Ng4 {[%clk 0:02:48.3]} 9. Bg5 {[%clk 0:02:51.1]} 9... h6 {[%clk 0:02:42.4]}
10. Bh4 {[%clk 0:02:49.8]} 10... O-O {[%clk 0:02:36.9]} 11. h3 {[%clk
0:02:49.6]} 11... Nf6 {[%clk 0:02:36.5]} 12. O-O {[%clk 0:02:40.2]} 12... e5
{[%clk 0:02:23.9]} 13. Nxe5 {[%clk 0:02:28.5]} 13... Nxe4 {[%clk 0:02:22.4]} 14.
Qf4 {[%clk 0:02:04.8]} 14... Ng5 {[%clk 0:01:33.9]} 15. Nxc6 {[%clk 0:01:54.2]}
15... Qd7 {[%clk 0:01:18.1]} 16. Ne5 {[%clk 0:01:53.6]} 16... Qd6 {[%clk
0:00:59.2]} 17. Rae1 {[%clk 0:01:44.8]} 17... Bb7 {[%clk 0:00:52]} 18. Bxg5
{[%clk 0:01:38.7]} 18... hxg5 {[%clk 0:00:51.8]} 19. Qxg5 {[%clk 0:01:39.2]}
19... Rae8 {[%clk 0:00:36.1]} 20. Ng4 {[%clk 0:01:37.8]} 20... f5 {[%clk
0:00:28.1]} 21. Ne3 {[%clk 0:01:26.2]} 21... Qc6 {[%clk 0:00:25.4]} 22. Ned5
{[%clk 0:01:20.2]} 22... Bxc3 {[%clk 0:00:11.7]} 23. Rxe8 {[%clk 0:01:18]} 23...
Qxd5 {[%clk 0:00:05]} 24. Qxg6+ {[%clk 0:01:17.5]} 24... Bg7 {[%clk 0:00:04.2]}
25. Rxf8+ {[%clk 0:01:15.6]} 25... Kxf8 {[%clk 0:00:04.2]} 26. Re1 {[%clk
0:01:16.3]} 26... Qf7 {[%clk 0:00:03.2]} 27. Qd6+ {[%clk 0:01:15.5]} 27... Kg8
{[%clk 0:00:02.4]} 28. Re7 {[%clk 0:01:15.5]} 28... Qd5 {[%clk 0:00:02.4]} 29.
Qg3 {[%clk 0:01:11.8]} 29... Qd4 {[%clk 0:00:01.9]} 30. Rxb7 {[%clk 0:01:11.3]}
1-0

[Event "*** Titled Tuesday Blitz"]
[Site "Chess.com"]
[Date "2020.05.26"]
[Round "3"]
[White "MathiasWomacka"]
[Black "wnstop"]
[Result "0-1"]
[WhiteElo "2380"]
[BlackElo "2587"]
[TimeControl "180+1"]
[EndTime "10:26:36 PDT"]
[Termination "wnstop won by resignation"]

1. e4 {[%clk 0:03:00.9]} 1... c5 {[%clk 0:02:56.4]} 2. Nf3 {[%clk 0:03:00.3]}
2... Nc6 {[%clk 0:02:56.5]} 3. d4 {[%clk 0:03:00.3]} 3... cxd4 {[%clk
0:02:57.4]} 4. Nxd4 {[%clk 0:03:01]} 4... e5 {[%clk 0:02:57.8]} 5. Nb5 {[%clk
0:03:00.3]} 5... d6 {[%clk 0:02:58.3]} 6. c4 {[%clk 0:03:00.1]} 6... Be7 {[%clk
0:02:57.9]} 7. N1c3 {[%clk 0:02:57]} 7... a6 {[%clk 0:02:58.2]} 8. Na3 {[%clk
0:02:57.1]} 8... Be6 {[%clk 0:02:58.8]} 9. Be2 {[%clk 0:02:52.1]} 9... Nd4
{[%clk 0:02:57.1]} 10. O-O {[%clk 0:02:47.1]} 10... Nxe2+ {[%clk 0:02:56.4]} 11.
Qxe2 {[%clk 0:02:46.8]} 11... Rc8 {[%clk 0:02:56.8]} 12. Be3 {[%clk 0:02:23.8]}
12... Qc7 {[%clk 0:02:39.5]} 13. Rfd1 {[%clk 0:02:17.6]} 13... Nf6 {[%clk
0:02:37]} 14. Bg5 {[%clk 0:02:09.6]} 14... Bxc4 {[%clk 0:02:26.8]} 15. Nxc4
{[%clk 0:02:08.5]} 15... Qxc4 {[%clk 0:02:27.7]} 16. Qxc4 {[%clk 0:02:07.9]}
16... Rxc4 {[%clk 0:02:28.6]} 17. Bxf6 {[%clk 0:02:08.2]} 17... gxf6 {[%clk
0:02:26.3]} 18. Rac1 {[%clk 0:02:05.7]} 18... Kd7 {[%clk 0:02:22.8]} 19. Nd5
{[%clk 0:02:05]} 19... Rxc1 {[%clk 0:02:13.1]} 20. Rxc1 {[%clk 0:02:05.9]} 20...
Bd8 {[%clk 0:02:12.7]} 21. g3 {[%clk 0:02:02.1]} 21... h5 {[%clk 0:02:00.6]} 22.
Kg2 {[%clk 0:02:01.1]} 22... Rg8 {[%clk 0:01:57.2]} 23. Kf3 {[%clk 0:01:58.5]}
23... Rg4 {[%clk 0:01:52.8]} 24. h3 {[%clk 0:01:55.8]} 24... Rg6 {[%clk
0:01:52]} 25. a4 {[%clk 0:01:40.6]} 25... Rg5 {[%clk 0:01:48.2]} 26. b4 {[%clk
0:01:38]} 26... f5 {[%clk 0:01:45.2]} 27. b5 {[%clk 0:01:18.1]} 27... fxe4+
{[%clk 0:01:37.1]} 28. Kxe4 {[%clk 0:01:18]} 28... f5+ {[%clk 0:01:37.1]} 29.
Kd3 {[%clk 0:00:58.2]} 29... h4 {[%clk 0:01:36.4]} 30. bxa6 {[%clk 0:00:56.7]}
30... bxa6 {[%clk 0:01:36.1]} 31. gxh4 {[%clk 0:00:50.2]} 31... Rh5 {[%clk
0:01:35]} 32. Nb4 {[%clk 0:00:40.4]} 32... Rxh4 {[%clk 0:01:32.8]} 33. Nxa6
{[%clk 0:00:40.4]} 33... Rxa4 {[%clk 0:01:31.9]} 34. Nb8+ {[%clk 0:00:39.4]}
34... Ke6 {[%clk 0:01:31.9]} 35. Nc6 {[%clk 0:00:39.1]} 35... Bb6 {[%clk
0:01:26.5]} 36. Rb1 {[%clk 0:00:38.3]} 36... Bxf2 {[%clk 0:01:23.5]} 37. Nd8+
{[%clk 0:00:35.1]} 37... Kd5 {[%clk 0:01:20.9]} 38. Rb5+ {[%clk 0:00:33.7]}
38... Bc5 {[%clk 0:01:20.3]} 39. Rb7 {[%clk 0:00:31.9]} 39... Ra3+ {[%clk
0:01:20.1]} 40. Ke2 {[%clk 0:00:31.2]} 40... Rxh3 {[%clk 0:01:21]} 0-1

[Event "*** Titled Tuesday Blitz"]
[Site "Chess.com"]
[Date "2020.05.26"]
[Round "3"]
[White "CookiesAndIceCream"]
[Black "MilosJi"]
[Result "0-1"]
[WhiteElo "2324"]
[BlackElo "2526"]
[TimeControl "180+1"]
[EndTime "10:26:36 PDT"]
[Termination "MilosJi won by resignation"]

1. e4 {[%clk 0:03:00.9]} 1... d5 {[%clk 0:02:57.8]} 2. exd5 {[%clk 0:03:00.5]}
2... Qxd5 {[%clk 0:02:55.3]} 3. Nc3 {[%clk 0:03:00.6]} 3... Qd6 {[%clk
0:02:55.2]} 4. d4 {[%clk 0:03:00.5]} 4... Nf6 {[%clk 0:02:55]} 5. Nf3 {[%clk
0:03:00.4]} 5... c6 {[%clk 0:02:53.8]} 6. Ne5 {[%clk 0:02:50.9]} 6... Nbd7
{[%clk 0:02:52.9]} 7. f4 {[%clk 0:02:50.3]} 7... g6 {[%clk 0:02:51.8]} 8. Bc4
{[%clk 0:02:49.9]} 8... Nd5 {[%clk 0:02:48.8]} 9. Ne4 {[%clk 0:02:37]} 9... Qc7
{[%clk 0:02:48.1]} 10. O-O {[%clk 0:02:36.6]} 10... Bg7 {[%clk 0:02:47.5]} 11.
Nxf7 {[%clk 0:02:23.7]} 11... Kxf7 {[%clk 0:02:46]} 12. Ng5+ {[%clk 0:02:23.3]}
12... Kg8 {[%clk 0:02:44.7]} 13. f5 {[%clk 0:01:27.3]} 13... Nb6 {[%clk
0:02:43]} 14. Bf4 {[%clk 0:01:25.5]} 14... Qd8 {[%clk 0:02:36.4]} 15. fxg6
{[%clk 0:01:22.1]} 15... hxg6 {[%clk 0:02:22]} 16. Bb3 {[%clk 0:01:18.8]} 16...
Bf5 {[%clk 0:02:15]} 17. g4 {[%clk 0:01:04.8]} 17... Bd7 {[%clk 0:02:14.1]} 18.
c4 {[%clk 0:01:04.2]} 18... Nf6 {[%clk 0:02:13.4]} 19. d5 {[%clk 0:01:04.5]}
19... Bxg4 {[%clk 0:02:05.3]} 20. Qd3 {[%clk 0:00:52.7]} 20... Bf5 {[%clk
0:02:04.5]} 21. Qe3 {[%clk 0:00:52.8]} 21... Rh4 {[%clk 0:01:50.2]} 22. Rad1
{[%clk 0:00:50.8]} 22... c5 {[%clk 0:01:47.1]} 23. Qxc5 {[%clk 0:00:48.1]} 23...
Nh5 {[%clk 0:01:40.2]} 24. Qe3 {[%clk 0:00:44.8]} 24... Nxf4 {[%clk 0:01:26.8]}
25. Rxf4 {[%clk 0:00:43.9]} 25... Rxf4 {[%clk 0:01:26.6]} 26. Qxf4 {[%clk
0:00:43.7]} 26... Qd6 {[%clk 0:01:25.5]} 27. Qh4 {[%clk 0:00:41.4]} 27... Nd7
{[%clk 0:01:20.5]} 28. Qh7+ {[%clk 0:00:27.9]} 28... Kf8 {[%clk 0:01:20]} 29.
Ne6+ {[%clk 0:00:28.4]} 29... Bxe6 {[%clk 0:01:19.3]} 30. dxe6 {[%clk
0:00:28.8]} 30... Qc5+ {[%clk 0:01:17.4]} 31. Kh1 {[%clk 0:00:26.7]} 31... Qc6+
{[%clk 0:01:16.9]} 32. Kg1 {[%clk 0:00:25]} 32... Qxe6 {[%clk 0:01:16]} 33. c5
{[%clk 0:00:22.3]} 33... Qg4+ {[%clk 0:01:15]} 34. Kf2 {[%clk 0:00:22.5]} 34...
Nf6 {[%clk 0:01:11.7]} 35. Rg1 {[%clk 0:00:21.5]} 35... Qxg1+ {[%clk 0:01:10.7]}
36. Kxg1 {[%clk 0:00:19.7]} 36... Nxh7 {[%clk 0:01:10.8]} 0-1

[Event "*** Titled Tuesday Blitz"]
[Site "Chess.com"]
[Date "2020.05.26"]
[Round "3"]
[White "ShahMatKanal"]
[Black "Msb2"]
[Result "0-1"]
[WhiteElo "2456"]
[BlackElo "2872"]
[TimeControl "180+1"]
[EndTime "10:26:38 PDT"]
[Termination "Msb2 won on time"]

1. d4 {[%clk 0:03:00.9]} 1... d5 {[%clk 0:02:59.6]} 2. c4 {[%clk 0:02:57.6]}
2... c6 {[%clk 0:02:58.6]} 3. Nf3 {[%clk 0:02:56.9]} 3... Nf6 {[%clk 0:02:58.7]}
4. e3 {[%clk 0:02:55.4]} 4... Bf5 {[%clk 0:02:58.1]} 5. Nc3 {[%clk 0:02:52.9]}
5... e6 {[%clk 0:02:56]} 6. Be2 {[%clk 0:02:43.6]} 6... Nbd7 {[%clk 0:02:52.6]}
7. O-O {[%clk 0:02:42.8]} 7... Bd6 {[%clk 0:02:51.6]} 8. Qb3 {[%clk 0:02:36.2]}
8... Rb8 {[%clk 0:02:50.6]} 9. c5 {[%clk 0:01:59.2]} 9... Bc7 {[%clk 0:02:48.8]}
10. Qa4 {[%clk 0:01:56.4]} 10... a6 {[%clk 0:02:45.6]} 11. b4 {[%clk 0:01:56.2]}
11... O-O {[%clk 0:02:44.7]} 12. Bb2 {[%clk 0:01:54.1]} 12... e5 {[%clk
0:02:38.7]} 13. dxe5 {[%clk 0:01:38.3]} 13... Nxe5 {[%clk 0:02:39.6]} 14. Rfd1
{[%clk 0:01:28.4]} 14... Qe7 {[%clk 0:02:19.2]} 15. Qb3 {[%clk 0:01:15.5]} 15...
Rfe8 {[%clk 0:02:05.7]} 16. Nd4 {[%clk 0:01:10.3]} 16... Bd7 {[%clk 0:02:03.1]}
17. h3 {[%clk 0:00:58.7]} 17... Ng6 {[%clk 0:01:57.7]} 18. Bd3 {[%clk
0:00:54.5]} 18... Qe5 {[%clk 0:01:47.2]} 19. Nf3 {[%clk 0:00:35.9]} 19... Qh5
{[%clk 0:01:47.2]} 20. Be2 {[%clk 0:00:28.8]} 20... Bxh3 {[%clk 0:01:46.9]} 21.
gxh3 {[%clk 0:00:27.4]} 21... Qxh3 {[%clk 0:01:47.8]} 22. Rd4 {[%clk 0:00:20.1]}
22... Ng4 {[%clk 0:01:39.2]} 23. Rxg4 {[%clk 0:00:15.1]} 23... Qxg4+ {[%clk
0:01:40.1]} 24. Kf1 {[%clk 0:00:15.5]} 24... Qh3+ {[%clk 0:01:39.6]} 25. Ke1
{[%clk 0:00:15.6]} 25... Nf4 {[%clk 0:01:39.7]} 26. Nd1 {[%clk 0:00:08.2]} 26...
Nxe2 {[%clk 0:01:19.5]} 27. Kxe2 {[%clk 0:00:09.1]} 27... Re6 {[%clk 0:01:19.8]}
28. Qc3 {[%clk 0:00:08.4]} 28... Qg4 {[%clk 0:01:19.3]} 29. Qd4 {[%clk
0:00:06.7]} 29... Re4 {[%clk 0:01:17.6]} 30. Qd3 {[%clk 0:00:02.1]} 30... Rbe8
{[%clk 0:01:16.9]} 31. Nc3 {[%clk 0:00:01.4]} 31... Rf4 {[%clk 0:01:17.5]} 32.
Rg1 {[%clk 0:00:01]} 32... Qxf3+ {[%clk 0:01:17.7]} 0-1

[Event "*** Titled Tuesday Blitz"]
[Site "Chess.com"]
[Date "2020.05.26"]
[Round "3"]
[White "jacky72"]
[Black "underdogchss"]
[Result "1-0"]
[WhiteElo "2644"]
[BlackElo "2410"]
[TimeControl "180+1"]
[EndTime "10:26:38 PDT"]
[Termination "jacky72 won by resignation"]

1. d4 {[%clk 0:03:00.9]} 1... Nf6 {[%clk 0:02:55.2]} 2. c4 {[%clk 0:03:01.8]}
2... e6 {[%clk 0:02:55.6]} 3. Nf3 {[%clk 0:03:01.6]} 3... b6 {[%clk 0:02:55.2]}
4. g3 {[%clk 0:03:01.1]} 4... Ba6 {[%clk 0:02:55.2]} 5. Qc2 {[%clk 0:03:00.6]}
5... Bb7 {[%clk 0:02:54.4]} 6. Bg2 {[%clk 0:03:00.5]} 6... c5 {[%clk 0:02:54.5]}
7. d5 {[%clk 0:03:00.1]} 7... exd5 {[%clk 0:02:54.1]} 8. cxd5 {[%clk 0:03:01]}
8... Nxd5 {[%clk 0:02:48.8]} 9. O-O {[%clk 0:03:01.2]} 9... Be7 {[%clk
0:02:48.6]} 10. Rd1 {[%clk 0:03:01.6]} 10... Nc6 {[%clk 0:02:45.8]} 11. Qf5
{[%clk 0:03:01.1]} 11... Nc7 {[%clk 0:02:12.3]} 12. Nc3 {[%clk 0:03:00]} 12...
Ne6 {[%clk 0:01:56.4]} 13. Ne5 {[%clk 0:02:44]} 13... Nxe5 {[%clk 0:01:40.3]}
14. Bxb7 {[%clk 0:02:44.9]} 14... Rb8 {[%clk 0:01:40.6]} 15. Bg2 {[%clk
0:02:44.3]} 15... Nc6 {[%clk 0:01:35.5]} 16. e3 {[%clk 0:02:37.5]} 16... g6
{[%clk 0:01:09.3]} 17. Qg4 {[%clk 0:02:31.2]} 17... Rc8 {[%clk 0:00:56.3]} 18.
b3 {[%clk 0:02:27.6]} 18... O-O {[%clk 0:00:55.1]} 19. Bb2 {[%clk 0:02:28]}
19... Bf6 {[%clk 0:00:54.4]} 20. Rd2 {[%clk 0:02:22.5]} 20... Bg7 {[%clk
0:00:52.7]} 21. Rad1 {[%clk 0:02:20.3]} 21... Qe8 {[%clk 0:00:50.4]} 22. Qa4
{[%clk 0:02:11.8]} 22... Rc7 {[%clk 0:00:45.9]} 23. Nb5 {[%clk 0:02:05.8]} 23...
Bxb2 {[%clk 0:00:25.6]} 24. Nxc7 {[%clk 0:02:05.3]} 24... Nxc7 {[%clk 0:00:25]}
25. Rxb2 {[%clk 0:02:03.6]} 25... d5 {[%clk 0:00:20.4]} 26. Bxd5 {[%clk
0:01:59.2]} 26... Nb4 {[%clk 0:00:20.6]} 27. Qxe8 {[%clk 0:01:57.5]} 27... Rxe8
{[%clk 0:00:21.5]} 28. Bf3 {[%clk 0:01:55.3]} 28... Re7 {[%clk 0:00:16.6]} 29.
Rd8+ {[%clk 0:01:55]} 29... Kg7 {[%clk 0:00:16.3]} 30. a3 {[%clk 0:01:55.9]}
30... Ne6 {[%clk 0:00:16.1]} 31. Rd6 {[%clk 0:01:50.8]} 31... Na6 {[%clk
0:00:15.8]} 32. b4 {[%clk 0:01:49.6]} 32... Nac7 {[%clk 0:00:15.1]} 33. Bc6
{[%clk 0:01:44.5]} 33... cxb4 {[%clk 0:00:13.9]} 34. axb4 {[%clk 0:01:44.4]}
34... b5 {[%clk 0:00:13.6]} 35. Ra2 {[%clk 0:01:42.8]} 35... a6 {[%clk
0:00:12.1]} 36. Bb7 {[%clk 0:01:42.7]} 36... h5 {[%clk 0:00:09.3]} 37. Bxa6
{[%clk 0:01:41.7]} 37... Nxa6 {[%clk 0:00:08.8]} 38. Raxa6 {[%clk 0:01:41]}
38... h4 {[%clk 0:00:08.4]} 39. gxh4 {[%clk 0:01:40.8]} 39... Rc7 {[%clk
0:00:07.9]} 40. Rab6 {[%clk 0:01:38.7]} 40... Rc1+ {[%clk 0:00:06.9]} 41. Kg2
{[%clk 0:01:38.6]} 41... Rc2 {[%clk 0:00:07.8]} 42. Rxb5 {[%clk 0:01:38.2]} 1-0

[Event "*** Titled Tuesday Blitz"]
[Site "Chess.com"]
[Date "2020.05.26"]
[Round "3"]
[White "Semen_Khanin"]
[Black "lachesisQ"]
[Result "0-1"]
[WhiteElo "2697"]
[BlackElo "3152"]
[TimeControl "180+1"]
[EndTime "10:26:39 PDT"]
[Termination "lachesisQ won by resignation"]

1. e4 {[%clk 0:03:00.9]} 1... c5 {[%clk 0:02:59.4]} 2. Nf3 {[%clk 0:03:01]} 2...
d6 {[%clk 0:02:59.5]} 3. d4 {[%clk 0:03:01.4]} 3... cxd4 {[%clk 0:03:00.4]} 4.
Nxd4 {[%clk 0:03:02]} 4... Nf6 {[%clk 0:03:00.9]} 5. Nc3 {[%clk 0:03:02.7]} 5...
a6 {[%clk 0:03:01.6]} 6. f3 {[%clk 0:03:03.4]} 6... e5 {[%clk 0:02:59.3]} 7. Nb3
{[%clk 0:03:04.1]} 7... Be7 {[%clk 0:02:59.6]} 8. Be3 {[%clk 0:03:04.5]} 8...
Be6 {[%clk 0:02:59.3]} 9. Qd2 {[%clk 0:03:04]} 9... h5 {[%clk 0:02:59.5]} 10.
Nd5 {[%clk 0:03:02.4]} 10... Bxd5 {[%clk 0:02:54.4]} 11. exd5 {[%clk 0:03:02.6]}
11... Nbd7 {[%clk 0:02:55.2]} 12. Be2 {[%clk 0:03:02.1]} 12... O-O {[%clk
0:02:52.9]} 13. c4 {[%clk 0:03:00.9]} 13... Qb8 {[%clk 0:02:53.1]} 14. O-O
{[%clk 0:02:56.2]} 14... Bd8 {[%clk 0:02:51.1]} 15. Rac1 {[%clk 0:02:49.7]}
15... Re8 {[%clk 0:02:45.5]} 16. c5 {[%clk 0:02:38.8]} 16... dxc5 {[%clk
0:02:43.2]} 17. Nxc5 {[%clk 0:02:39]} 17... Bb6 {[%clk 0:02:38.6]} 18. b4 {[%clk
0:02:36.5]} 18... a5 {[%clk 0:02:38.3]} 19. Bb5 {[%clk 0:02:31.2]} 19... Rd8
{[%clk 0:02:25.5]} 20. a3 {[%clk 0:02:14.5]} 20... axb4 {[%clk 0:02:15.6]} 21.
axb4 {[%clk 0:02:13.6]} 21... Nxc5 {[%clk 0:02:13.6]} 22. bxc5 {[%clk
0:02:12.2]} 22... Rxd5 {[%clk 0:02:13.5]} 23. Qc2 {[%clk 0:02:02.9]} 23... Ra5
{[%clk 0:02:02.7]} 24. Rb1 {[%clk 0:01:16.7]} 24... Qc7 {[%clk 0:01:53]} 25.
Rfc1 {[%clk 0:01:15.7]} 25... Ba7 {[%clk 0:01:51.6]} 26. Bf2 {[%clk 0:00:52]}
26... e4 {[%clk 0:01:39.2]} 27. fxe4 {[%clk 0:00:39.5]} 27... Rg5 {[%clk
0:01:31.8]} 28. h3 {[%clk 0:00:35.1]} 28... Ra3 {[%clk 0:01:23.7]} 29. Kh1
{[%clk 0:00:23.4]} 29... Qf4 {[%clk 0:01:16.4]} 30. Qe2 {[%clk 0:00:21.9]} 30...
Bb8 {[%clk 0:01:05.7]} 31. Bg1 {[%clk 0:00:19.3]} 31... Nxe4 {[%clk 0:01:05.6]}
0-1

[Event "*** Titled Tuesday Blitz"]
[Site "Chess.com"]
[Date "2020.05.26"]
[Round "3"]
[White "wild_cat99"]
[Black "Stronger1799"]
[Result "1-0"]
[WhiteElo "2556"]
[BlackElo "2353"]
[TimeControl "180+1"]
[EndTime "10:26:40 PDT"]
[Termination "wild_cat99 won on time"]

1. Nf3 {[%clk 0:03:00.9]} 1... Nf6 {[%clk 0:02:46.7]} 2. c4 {[%clk 0:03:00.2]}
2... g6 {[%clk 0:02:46.6]} 3. d4 {[%clk 0:02:59.9]} 3... Bg7 {[%clk 0:02:46.2]}
4. Nc3 {[%clk 0:03:00]} 4... d5 {[%clk 0:02:46.9]} 5. cxd5 {[%clk 0:03:00]} 5...
Nxd5 {[%clk 0:02:47.6]} 6. e4 {[%clk 0:03:00.9]} 6... Nxc3 {[%clk 0:02:48.2]} 7.
bxc3 {[%clk 0:03:01.8]} 7... c5 {[%clk 0:02:48.7]} 8. Be3 {[%clk 0:03:00.7]}
8... O-O {[%clk 0:02:40]} 9. Be2 {[%clk 0:02:56]} 9... Qa5 {[%clk 0:02:39.7]}
10. O-O {[%clk 0:02:52.6]} 10... Rd8 {[%clk 0:02:33.1]} 11. Qb3 {[%clk
0:02:33.8]} 11... e6 {[%clk 0:01:45.8]} 12. Bg5 {[%clk 0:02:19.9]} 12... Rd6
{[%clk 0:01:33.5]} 13. e5 {[%clk 0:02:13.1]} 13... Rb6 {[%clk 0:01:30.7]} 14.
Qc4 {[%clk 0:02:08.5]} 14... Bd7 {[%clk 0:01:26.1]} 15. dxc5 {[%clk 0:01:40.6]}
15... Rb2 {[%clk 0:01:26.3]} 16. a4 {[%clk 0:01:26.7]} 16... Na6 {[%clk
0:01:14.5]} 17. Rab1 {[%clk 0:01:12.4]} 17... Rxb1 {[%clk 0:01:03.1]} 18. Rxb1
{[%clk 0:01:13.3]} 18... Nxc5 {[%clk 0:00:54.9]} 19. Rb5 {[%clk 0:01:13.1]}
19... Bxb5 {[%clk 0:00:25.4]} 20. Qxc5 {[%clk 0:01:12.7]} 20... Qxa4 {[%clk
0:00:16.2]} 21. Bxb5 {[%clk 0:01:13.1]} 21... Qa1+ {[%clk 0:00:15.6]} 22. Bf1
{[%clk 0:01:11.9]} 22... a5 {[%clk 0:00:11.7]} 23. Qc7 {[%clk 0:01:11.7]} 23...
Qb1 {[%clk 0:00:07.5]} 24. Be3 {[%clk 0:01:08.1]} 24... a4 {[%clk 0:00:06.5]}
25. Nd2 {[%clk 0:01:07.4]} 25... Qb2 {[%clk 0:00:02.5]} 26. Nc4 {[%clk 0:01:07]}
26... Qb3 {[%clk 0:00:01.9]} 27. Bc5 {[%clk 0:01:04.9]} 27... a3 {[%clk
0:00:01.5]} 28. Nxa3 {[%clk 0:01:04.6]} 28... Rxa3 {[%clk 0:00:01.1]} 29. Qd8+
{[%clk 0:01:04.3]} 1-0

[Event "*** Titled Tuesday Blitz"]
[Site "Chess.com"]
[Date "2020.05.26"]
[Round "3"]
[White "DishonorOnYourCow"]
[Black "Artem_Sadovsky"]
[Result "0-1"]
[WhiteElo "2313"]
[BlackElo "2519"]
[TimeControl "180+1"]
[EndTime "10:26:40 PDT"]
[Termination "Artem_Sadovsky won by resignation"]

1. d4 {[%clk 0:03:00.9]} 1... g6 {[%clk 0:02:51.9]} 2. c4 {[%clk 0:02:59.4]}
2... Bg7 {[%clk 0:02:51.3]} 3. Nc3 {[%clk 0:02:55]} 3... d6 {[%clk 0:02:51.4]}
4. e4 {[%clk 0:02:48.3]} 4... e5 {[%clk 0:02:51.1]} 5. d5 {[%clk 0:02:13.9]}
5... f5 {[%clk 0:02:49]} 6. exf5 {[%clk 0:02:12.4]} 6... gxf5 {[%clk 0:02:48.8]}
7. Qh5+ {[%clk 0:02:12.4]} 7... Kf8 {[%clk 0:02:47.8]} 8. Bg5 {[%clk 0:02:04]}
8... Nf6 {[%clk 0:02:47.5]} 9. Qe2 {[%clk 0:02:03.7]} 9... Qe8 {[%clk
0:02:39.9]} 10. h3 {[%clk 0:01:42.4]} 10... Qg6 {[%clk 0:02:39.4]} 11. f4 {[%clk
0:01:34.9]} 11... Nh5 {[%clk 0:02:36.4]} 12. Qf3 {[%clk 0:01:19.4]} 12... h6
{[%clk 0:02:27.5]} 13. g4 {[%clk 0:01:15.4]} 13... hxg5 {[%clk 0:02:08.5]} 14.
gxh5 {[%clk 0:01:14.5]} 14... Rxh5 {[%clk 0:01:57.4]} 15. fxe5 {[%clk
0:00:56.1]} 15... Bxe5 {[%clk 0:01:54]} 16. O-O-O {[%clk 0:00:53.8]} 16... Na6
{[%clk 0:01:42.8]} 17. Nge2 {[%clk 0:00:36.1]} 17... g4 {[%clk 0:01:33.3]} 18.
Qg2 {[%clk 0:00:26.7]} 18... Nc5 {[%clk 0:01:25.7]} 19. hxg4 {[%clk 0:00:18.2]}
19... Rxh1 {[%clk 0:01:25.1]} 20. Qxh1 {[%clk 0:00:18.1]} 20... f4 {[%clk
0:01:25.5]} 21. Ng1 {[%clk 0:00:14.2]} 21... Bxg4 {[%clk 0:01:24.4]} 22. Nf3
{[%clk 0:00:13.5]} 22... Bxc3 {[%clk 0:01:22.7]} 23. bxc3 {[%clk 0:00:13.2]}
23... Qh5 {[%clk 0:01:17.8]} 24. Qxh5 {[%clk 0:00:11.6]} 24... Bxh5 {[%clk
0:01:18.7]} 25. Be2 {[%clk 0:00:11.8]} 25... Re8 {[%clk 0:01:16.5]} 26. Kd2
{[%clk 0:00:10.1]} 26... Ne4+ {[%clk 0:01:14.7]} 27. Kc2 {[%clk 0:00:10.1]}
27... Ng3 {[%clk 0:01:13.9]} 28. Ng5 {[%clk 0:00:02.6]} 28... Rxe2+ {[%clk
0:01:12.5]} 29. Kb3 {[%clk 0:00:01.1]} 29... Rb2+ {[%clk 0:01:11.5]} 30. Kxb2
{[%clk 0:00:01.5]} 30... Bxd1 {[%clk 0:01:12]} 31. Ne6+ {[%clk 0:00:02.2]} 31...
Ke7 {[%clk 0:01:12.1]} 32. Nxc7 {[%clk 0:00:03.1]} 32... f3 {[%clk 0:01:11.2]}
0-1